{"text_format":"3","workbook":"xlsx","n_sheets":4,"sheets":["Форма пропозиції","Дані діаграми","Розподіл витрат","Підсумок вартості пропозиції"],"not_rendered":{"charts":1,"images":2,"defined_names":11},"read":"whole","date_system":"1900"}

{"sheet":"Форма пропозиції","index":0,"n_rows":21,"n_cols":6,"rows_kept":21,"merged":[[0,1,0,4],[1,1,1,2],[7,1,8,1],[7,2,8,2],[10,1,10,5],[12,1,12,5],[14,1,14,5],[15,1,15,2],[15,4,15,5],[16,1,16,2],[16,4,16,5],[18,1,18,5],[19,1,19,2],[19,4,19,5],[20,1,20,2],[20,4,20,5]]}
[null,"Форма заявки на будівництво"]
[null,"Відомості про власника",null,null,"Відомості про підрядника"]
[null,"Ім’я","Введіть ім’я власника в цій клітинці",null,"Компанія","Введіть назву компанії підрядника в цій клітинці"]
[null,"Адреса","Введіть адресу власника в цій клітинці",null,"Ім’я","Введіть ім’я підрядника в цій клітинці"]
[null,"Місто, область, поштовий індекс","Введіть місто, область і поштовий індекс власника у цій клітинці",null,"Адреса","Введіть адресу підрядника в цій клітинці"]
[null,"Телефон","Введіть номер телефону власника в цій клітинці",null,"Місто, область, поштовий індекс","Введіть місто, область і поштовий індекс підрядника в цій клітинці"]
[null,"Електронна адреса","Введіть адресу електронної пошти власника в цій клітинці",null,"Телефон","Введіть номер телефону підрядника в цій клітинці"]
[null,"Назва проекту","Введіть назву проекту в цій клітинці",null,"Електронна адреса","Введіть електронну адресу підрядника в цій клітинці "]
[{"$nulls":4},"Дата завершення","Введіть дату завершення роботи в цій клітинці"]
[null,"Обсяг робіт"]
[null,"Тут відображається обсяг робіт. Введіть усі потрібні специфікації. \n\nЗразок тексту: Це макет проекту зі створення великих сходів. Для виготовлення каркаса ми використовуватимемо тільки пиломатеріали розміром 2x4 і 2x8, а також кронштейни для балок. Сходи буде вирізано з матеріалу розміром 2х4. Ми використовуватимемо гвинти розміром щонайменше 5 см.  Цвяхи будуть розміром щонайменше 2 см. Одна сходинка повинна витримувати не менше ніж 225 кг. Сходинки будуть на одному рівні з будинком. До будинку буде кріпитися підніжка. Підрядник відповідає за прибирання."]
[null,"Не включені дані"]
[null,"Не включені відомості про проект потрібно вказати тут. Введіть усі дані, які не включено до цієї пропозиції. \n\nЗразок тексту: Рейки не встановлюватимуться. Основу має підготувати власник. Сходи має фарбувати власник."]
[null,"Пропозиція компанії"]
[null,"Тут відображається пропозиція компанії. Введіть огляд пропозиції, включно з тим, хто пропонує роботу, очікувану дату завершення й обсяг пропозиції.\n\nЗразок тексту: Ми, назва компанії, пропонуємо вищезазначений обсяг роботи, який виконаємо до дати завершення за таку загальну суму."]
[]
[null,"Надсилає (представник компанії)",null,null,"Дата"]
[null,"Прийняття власником"]
[null,"Тут відображається прийняти пропозиції власником. Введіть ім’я власника в повідомленні з підтвердженням, яке містить дату завершення та загальну суму, зазначену в пропозиції компанії. \n\nЗразок тексту: Я, ім’я власника, приймаю вищезазначений обсяг роботи, який має бути виконаний до дати завершення за таку загальну суму."]
[]
[null,"Надсилає (власник будинку або вповноважений представник)",null,null,"Дата"]

{"sheet":"Дані діаграми","index":1,"n_rows":7,"n_cols":3,"rows_kept":7,"hidden":true}
[]
[null,null,"Усього"]
[null,{"$f":"INDEX(ЕлементиПропозиції[#Data],MATCH(1,ЕлементиПропозиції[Ранжовані витрати],0),2)","v":"Вартість роботи"},{"$f":"INDEX(ЕлементиПропозиції[#Data],MATCH(1,ЕлементиПропозиції[Ранжовані витрати],0),4)","v":200}]
[null,{"$f":"INDEX(ЕлементиПропозиції[#Data],MATCH(2,ЕлементиПропозиції[Ранжовані витрати],0),2)","v":"Пиломатеріали 2x4x10"},{"$f":"INDEX(ЕлементиПропозиції[#Data],MATCH(2,ЕлементиПропозиції[Ранжовані витрати],0),4)","v":99.39999999999999}]
[null,{"$f":"INDEX(ЕлементиПропозиції[#Data],MATCH(3,ЕлементиПропозиції[Ранжовані витрати],0),2)","v":"Кріплення для балок"},{"$f":"INDEX(ЕлементиПропозиції[#Data],MATCH(3,ЕлементиПропозиції[Ранжовані витрати],0),4)","v":74.7}]
[null,{"$f":"INDEX(ЕлементиПропозиції[#Data],MATCH(4,ЕлементиПропозиції[Ранжовані витрати],0),2)","v":"Пиломатеріали 2x8x10"},{"$f":"INDEX(ЕлементиПропозиції[#Data],MATCH(4,ЕлементиПропозиції[Ранжовані витрати],0),4)","v":33.75}]
[null,{"$f":"INDEX(ЕлементиПропозиції[#Data],MATCH(5,ЕлементиПропозиції[Ранжовані витрати],0),2)","v":"Пара рукавиць, шкіряні"},{"$f":"INDEX(ЕлементиПропозиції[#Data],MATCH(5,ЕлементиПропозиції[Ранжовані витрати],0),4)","v":15.5}]

{"sheet":"Розподіл витрат","index":2,"n_rows":14,"n_cols":6,"rows_kept":14,"merged":[[0,1,0,4],[1,1,1,4]]}
[null,"Розподіл витрат",{"$nulls":3}," "]
[null,"Список матеріалів і витрат"]
[null,"К-сть","Опис","Ціна","Підсумок","Ранжовані витрати"]
[null,5,"Пиломатеріали 2x8x10",{"v":6.75,"d":"6.75 ₴"},{"$f":"IFERROR(ЕлементиПропозиції[[#This Row],[Ціна]]*ЕлементиПропозиції[[#This Row],[К-сть]], \"\")","v":{"v":33.75,"d":"33.75 ₴"}},{"$f":"_xlfn.RANK.EQ(ЕлементиПропозиції[[#This Row],[Підсумок]],ЕлементиПропозиції[Підсумок])","v":4}]
[null,20,"Пиломатеріали 2x4x10",{"v":4.97,"d":"4.97 ₴"},{"$f":"IFERROR(ЕлементиПропозиції[[#This Row],[Ціна]]*ЕлементиПропозиції[[#This Row],[К-сть]], \"\")","v":{"v":99.39999999999999,"d":"99.40 ₴"}},{"$f":"_xlfn.RANK.EQ(ЕлементиПропозиції[[#This Row],[Підсумок]],ЕлементиПропозиції[Підсумок])","v":2}]
[null,30,"Кріплення для балок",{"v":2.49,"d":"2.49 ₴"},{"$f":"IFERROR(ЕлементиПропозиції[[#This Row],[Ціна]]*ЕлементиПропозиції[[#This Row],[К-сть]], \"\")","v":{"v":74.7,"d":"74.70 ₴"}},{"$f":"_xlfn.RANK.EQ(ЕлементиПропозиції[[#This Row],[Підсумок]],ЕлементиПропозиції[Підсумок])","v":3}]
[null,2,"Коробка гвинтів, 5 см",{"v":6.67,"d":"6.67 ₴"},{"$f":"IFERROR(ЕлементиПропозиції[[#This Row],[Ціна]]*ЕлементиПропозиції[[#This Row],[К-сть]], \"\")","v":{"v":13.34,"d":"13.34 ₴"}},{"$f":"_xlfn.RANK.EQ(ЕлементиПропозиції[[#This Row],[Підсумок]],ЕлементиПропозиції[Підсумок])","v":6}]
[null,2,"Коробка цвяхів, 2 см",{"v":3.25,"d":"3.25 ₴"},{"$f":"IFERROR(ЕлементиПропозиції[[#This Row],[Ціна]]*ЕлементиПропозиції[[#This Row],[К-сть]], \"\")","v":{"v":6.5,"d":"6.50 ₴"}},{"$f":"_xlfn.RANK.EQ(ЕлементиПропозиції[[#This Row],[Підсумок]],ЕлементиПропозиції[Підсумок])","v":7}]
[null,2,"Пара рукавиць, шкіряні",{"v":7.75,"d":"7.75 ₴"},{"$f":"IFERROR(ЕлементиПропозиції[[#This Row],[Ціна]]*ЕлементиПропозиції[[#This Row],[К-сть]], \"\")","v":{"v":15.5,"d":"15.50 ₴"}},{"$f":"_xlfn.RANK.EQ(ЕлементиПропозиції[[#This Row],[Підсумок]],ЕлементиПропозиції[Підсумок])","v":5}]
[null,2,"Вартість роботи",{"v":100,"d":"100.00 ₴"},{"$f":"IFERROR(ЕлементиПропозиції[[#This Row],[Ціна]]*ЕлементиПропозиції[[#This Row],[К-сть]], \"\")","v":{"v":200,"d":"200.00 ₴"}},{"$f":"_xlfn.RANK.EQ(ЕлементиПропозиції[[#This Row],[Підсумок]],ЕлементиПропозиції[Підсумок])","v":1}]
[4,null,null,"Проміжна сума",{"$f":"SUBTOTAL(109,ЕлементиПропозиції[Підсумок])","v":{"v":443.18999999999994,"d":"443.19 ₴"}}]
[5,null,null,"Податкова ставка",{"v":0.075,"d":"7.50%"}]
[{"$nulls":3},"Податок",{"$f":"IFERROR(ПодатковаСтавка*ЕлементиПропозиції[[#Totals],[Підсумок]], \"\")","v":{"v":33.23924999999999,"d":"33.24 ₴"}}]
[{"$nulls":3},"Загальна сума",{"$f":"IFERROR(Податок+ЕлементиПропозиції[[#Totals],[Підсумок]], \"\")","v":{"v":476.4292499999999,"d":"476.43 ₴"}}]

{"sheet":"Підсумок вартості пропозиції","index":3,"n_rows":3,"n_cols":4,"rows_kept":3}
[null,"Зведення про вартість пропозиції"]
[null,"Розподіл матеріалів і витрат",null,"Примітки"]
[null,"Секторна діаграма з 5 найбільшими цінами за матеріали. Дані ґрунтуються на таблиці \"Елементи ставки\" на аркуші розподілу витрат",null,"Введіть примітки в цій клітинці."]